fUST/lending_fUST_20250506
["ID","MTS","AMOUNT","RATE_DAILY","PERIOD"]
[360003792,1746475842846,-400.0,0.00032876,8]
[360003794,1746475842855,-400.0,0.00032876,8]
[360003796,1746475842865,-400.0,0.00032876,8]
[360003799,1746475842875,-151.0,0.00032876,7]
[360003800,1746475842889,-151.0,0.00032876,7]
[360003803,1746475842899,-400.0,0.00032876,8]
[360003804,1746475842908,-256.57951056,0.00032876,8]
[360003807,1746475842918,-168.993075,0.00032876,7]
[360003809,1746475842927,-313.29072341,0.00032876,8]
[360003810,1746475842937,-400.0,0.00032876,8]
[360003813,1746475842946,-1250.72,0.00032876,8]
[360003815,1746475842956,-406.9331709,0.00032876,8]
[360003817,1746475842966,-400.0,0.00032876,8]
[360003819,1746475842976,-400.0,0.00032876,8]
[360003821,1746475842985,-311.15332568,0.00032876,8]
[360003823,1746475842994,-902.37,0.00032876,8]
[360003825,1746475843003,-400.0,0.00032876,8]
[360003827,1746475843012,-400.0,0.00032876,8]
[360003829,1746475843022,-400.0,0.00032876,8]
[360003831,1746475843031,-400.0,0.00032876,2]
[360003833,1746475843041,-400.0,0.00032876,8]
[360003835,1746475843050,-500.0,0.00032876,8]
[360003837,1746475843060,-400.0,0.00032876,8]
[360003840,1746475843069,-400.0,0.00032876,8]
[360003842,1746475843079,-173.26062494,0.00032876,8]
[360003844,1746475843088,-400.0,0.00032876,8]
[360003846,1746475843098,-400.0,0.00032876,8]
[360003848,1746475843107,-400.0,0.00032876,8]
[360003851,1746475843116,-400.0,0.00032876,8]
[360003853,1746475843126,-400.0,0.00032876,8]
[360003855,1746475843136,-400.0,0.00032876,8]
[360003856,1746475843145,-400.0,0.00032876,8]
[360003858,1746475843154,-400.0,0.00032876,8]
[360003860,1746475843164,-400.0,0.00032876,8]
[360003862,1746475843173,-951.2,0.00032876,8]
[360003864,1746475843183,-400.0,0.00032876,8]
[360003866,1746475843192,-400.0,0.00032876,8]
[360003868,1746475843201,-151.0,0.00032876,7]
[360003870,1746475843211,-400.0,0.00032876,8]
[360003872,1746475843221,-205.54247979,0.00032876,8]
[360003874,1746475843231,-400.0,0.00032876,8]
[360003877,1746475843240,-406.0448939,0.00032876,8]
[360003879,1746475843249,-400.0,0.00032876,8]
[360003881,1746475843259,-2778.72,0.00032876,8]
[360003883,1746475843269,-400.0,0.00032876,8]
[360003885,1746475843279,-481.35,0.00032876,8]
[360003887,1746475843288,-402.63366468,0.00032876,8]
[360003888,1746475843298,-441.19,0.00032876,8]
[360003890,1746475843308,-1163.89,0.00032876,8]
[360003891,1746475843317,-151.0,0.00032876,7]
[360003892,1746475843327,-151.0,0.00032876,7]
[360003893,1746475843336,-400.0,0.00032876,8]
[360003894,1746475843346,-2462.82,0.00032876,8]
[360003895,1746475843356,-784.75,0.00032876,8]
[360003896,1746475843365,-2872.64,0.00032876,8]
[360003897,1746475843374,-2068.07,0.00032876,8]
[360003898,1746475843384,-400.0,0.00032876,8]
[360003899,1746475843394,-400.0,0.00032876,8]
[360003901,1746475843403,-400.0,0.00032876,8]
[360003902,1746475843413,-400.0,0.00032876,8]
[360003903,1746475843422,-400.0,0.00032876,8]
[360003904,1746475843431,-884.25,0.00032876,8]
[360003906,1746475843440,-151.0,0.00032876,7]
[360003908,1746475843450,-400.0,0.00032876,8]
[360003910,1746475843459,-1111.28,0.00032876,8]
[360003912,1746475843469,-3336.63,0.00032876,8]
[360003914,1746475843478,-242.330822,0.00032876,7]
[360003916,1746475843487,-400.0,0.00032876,8]
[360003918,1746475843497,-400.0,0.00032876,8]
[360003920,1746475843507,-242.330822,0.00032876,7]
[360003922,1746475843516,-400.0,0.00032876,8]
[360003924,1746475843526,-151.0,0.00032876,7]
[360003926,1746475843535,-151.0,0.00032876,7]
[360003928,1746475843545,-151.0,0.00032876,7]
[360003930,1746475843555,-455.62,0.00032876,8]
[360003932,1746475843564,-410.67542105,0.00032876,8]
[360003934,1746475843574,-400.0,0.00032876,8]
[360003936,1746475843583,-241.99508724,0.00032876,8]
[360003938,1746475843593,-2759.78,0.00032876,8]
[360003940,1746475843602,-706.77,0.00032876,8]
[360003942,1746475843611,-402.12143597,0.00032876,8]
[360003944,1746475843620,-400.0,0.00032876,8]
[360003946,1746475843630,-400.0,0.00032876,8]
[360003948,1746475843640,-402.11863792,0.00032876,8]
[360003950,1746475843649,-583.91,0.00032876,8]
[360003952,1746475843659,-1784.35,0.00032876,8]
[360003954,1746475843668,-2045.49,0.00032876,8]
[360003956,1746475843678,-1899.04,0.00032876,8]
[360003958,1746475843687,-400.0,0.00032876,8]
[360003960,1746475843697,-400.0,0.00032876,8]
[360003962,1746475843707,-400.0,0.00032876,8]
[360003964,1746475843716,-400.0,0.00032876,8]
[360003966,1746475843725,-400.0,0.00032876,8]
[360003968,1746475843735,-400.0,0.00032876,8]
[360003970,1746475843745,-400.0,0.00032876,8]
[360003972,1746475843754,-232.029026,0.00032876,7]
[360003974,1746475843764,-400.0,0.00032876,8]
[360003976,1746475843777,-2414.87,0.00032876,8]
[360003978,1746475843786,-170.18552531,0.00032876,8]
[360004005,1746475844008,-229.81447469,0.00032876,8]
[360004007,1746475844018,-709.17,0.00032876,8]
[360004009,1746475844027,-330.1797328,0.00032876,8]
[360004010,1746475844036,-400.0,0.00032876,8]
[360004011,1746475844046,-400.0,0.00032876,8]
[360004013,1746475844055,-400.0,0.00032876,8]
[360004014,1746475844065,-170.10592825,0.00032876,8]
[360004015,1746475844074,-453.64349032,0.00032876,8]
[360004016,1746475844083,-400.0,0.00032876,8]
[360004017,1746475844092,-400.0,0.00032876,8]
[360004018,1746475844102,-400.0,0.00032876,8]
[360004019,1746475844111,-400.0,0.00032876,8]
[360004020,1746475844121,-400.0,0.00032876,8]
[360004021,1746475844131,-400.0,0.00032876,8]
[360004022,1746475844140,-2092.77,0.00032876,8]
[360004023,1746475844149,-357.85912436,0.00032876,8]
[360004024,1746475844158,-400.0,0.00032876,8]
[360004025,1746475844168,-400.0,0.00032876,8]
[360004026,1746475844177,-452.79,0.00032876,8]
[360004027,1746475844186,-400.0,0.00032876,8]
[360004028,1746475844196,-400.0,0.00032876,8]
[360004029,1746475844205,-291.41736469,0.00032876,8]
[360004030,1746475844214,-400.0,0.00032876,8]
[360004031,1746475844224,-400.0,0.00032876,8]
[360004033,1746475844233,-400.0,0.00032876,8]
[360004034,1746475844243,-9876.86,0.00032876,8]
[360004035,1746475844253,-400.0,0.00032876,8]
[360004036,1746475844262,-400.0,0.00032876,8]
[360004037,1746475844271,-500.0,0.00032876,8]
[360004038,1746475844281,-1525.89,0.00032876,8]
[360004039,1746475844290,-500.0,0.00032876,8]
[360004040,1746475844300,-500.0,0.00032876,8]
[360004041,1746475844309,-500.0,0.00032876,8]
[360004042,1746475844318,-753.29882749,0.00032876,8]
[360004043,1746475844659,-151.0,0.00032865,2]
[360004044,1746475844669,-164.85117251,0.00032876,8]
[360004045,1746475844679,-500.0,0.00032876,8]
[360004046,1746475844689,-500.0,0.00032876,8]
[360004047,1746475844699,-500.0,0.00032876,8]
[360004048,1746475844708,-500.0,0.00032876,8]
[360004049,1746475844718,-500.0,0.00032876,8]
[360004050,1746475844727,-400.0,0.00032876,8]
[360004051,1746475844887,-500.0,0.00032876,8]
[360004052,1746475844897,-500.0,0.00032876,8]
[360004053,1746475844908,-500.0,0.00032876,8]
[360004054,1746475844918,-500.0,0.00032876,8]
[360004055,1746475844927,-265.21947754,0.00032876,8]
[360004056,1746475845204,-3487.52704533,0.00032666,2]
[360004057,1746475845214,-222.52327311,0.00032876,8]
[360004058,1746475845224,-400.0,0.00032876,8]
[360004059,1746475845234,-1617.11,0.00032876,8]
[360004060,1746475845244,-712.28,0.00032876,8]
[360004061,1746475845253,-490.3,0.00032876,8]
[360004062,1746475845264,-400.0,0.00032876,8]
[360004063,1746475845274,-400.0,0.00032876,8]
[360004064,1746475845283,-272.81392912,0.00032876,8]
[360004065,1746475845292,-204.84796557,0.00032876,8]
[360004066,1746475845302,-400.0,0.00032876,8]
[360004067,1746475845312,-400.0,0.00032876,8]
[360004068,1746475845321,-400.0,0.00032876,8]
[360004069,1746475845331,-2115.77,0.00032876,8]
[360004070,1746475845341,-400.0,0.00032876,8]
[360004071,1746475845350,-400.0,0.00032876,8]
[360004072,1746475845360,-400.0,0.00032876,8]
[360004073,1746475845370,-8494.75,0.00032876,8]
[360004074,1746475845380,-400.0,0.00032876,8]
[360004075,1746475845390,-1519.46,0.00032876,8]
[360004076,1746475845399,-400.0,0.00032876,8]
[360004077,1746475845410,-400.0,0.00032876,8]
[360004078,1746475845419,-400.0,0.00032876,8]
[360004079,1746475845428,-400.0,0.00032876,8]
[360004080,1746475845438,-508.84,0.00032876,8]
[360004081,1746475845447,-905.03,0.00032876,8]
[360004082,1746475845457,-400.0,0.00032876,8]
[360004083,1746475845466,-400.0,0.00032876,8]
[360004084,1746475845476,-1965.52,0.00032876,8]
[360004085,1746475845486,-523.47,0.00032876,8]
[360004086,1746475845495,-413.35129827,0.00032876,8]
[360004087,1746475845505,-400.0,0.00032876,8]
[360004088,1746475845514,-3400.98,0.00032876,8]
[360004089,1746475845524,-666.32,0.00032876,8]
[360004090,1746475845534,-1433.17,0.00032876,8]
[360004091,1746475845543,-259.10875312,0.00032876,8]
[360004092,1746475845554,-400.0,0.00032876,8]
[360004093,1746475845563,-813.75,0.00032876,8]
[360004094,1746475845573,-400.0,0.00032876,8]
[360004095,1746475845582,-402.60440826,0.00032876,8]
[360004096,1746475845591,-400.0,0.00032876,8]
[360004097,1746475845601,-4186.08,0.00032876,8]
[360004098,1746475845610,-400.0,0.00032876,8]
[360004099,1746475845620,-400.0,0.00032876,8]
[360004100,1746475845630,-1419.78,0.00032876,8]
[360004101,1746475845639,-400.0,0.00032876,8]
[360004102,1746475845649,-400.77978627,0.00032876,8]
[360004103,1746475845658,-1162.78,0.00032876,8]
[360004104,1746475845668,-646.7,0.00032876,8]
[360004105,1746475845678,-1137.8,0.00032876,8]
[360004106,1746475845687,-400.0,0.00032876,8]
[360004107,1746475845697,-400.0,0.00032876,8]
[360004108,1746475845707,-400.0,0.00032876,8]
[360004109,1746475845716,-400.0,0.00032876,8]
[360004110,1746475845726,-400.0,0.00032876,8]
[360004111,1746475845736,-400.0,0.00032876,8]
[360004112,1746475845746,-1461.88,0.00032876,8]
[360004113,1746475845755,-400.0,0.00032876,8]
[360004114,1746475845764,-400.0,0.00032876,8]
[360004115,1746475845781,-4671.17,0.00032876,8]
[360004116,1746475845790,-158.440634,0.00032876,7]
[360004117,1746475845799,-158.440634,0.00032876,7]
[360004118,1746475845809,-400.0,0.00032876,8]
[360004119,1746475845820,-400.0,0.00032876,8]
[360004120,1746475845830,-400.0,0.00032876,8]
[360004121,1746475845839,-158.440634,0.00032876,7]
[360004122,1746475845850,-158.440634,0.00032876,7]
[360004123,1746475845861,-25472.73,0.00032876,8]
[360004124,1746475845870,-400.0,0.00032876,8]
[360004125,1746475845880,-400.0,0.00032876,8]
[360004126,1746475845890,-400.0,0.00032876,8]
[360004127,1746475845900,-1122.06,0.00032876,8]
[360004128,1746475845909,-400.0,0.00032876,8]
[360004129,1746475845919,-156.939379,0.00032876,7]
[360004130,1746475845928,-520.25,0.00032876,8]
[360004131,1746475845938,-400.0,0.00032876,8]
[360004132,1746475845948,-151.0,0.00032876,7]
[360004133,1746475845958,-549.43,0.00032876,8]
[360004134,1746475845967,-400.0,0.00032876,8]
[360004135,1746475845977,-1032.88,0.00032876,8]
[360004136,1746475845986,-400.0,0.00032876,8]
[360004137,1746475845996,-400.0,0.00032876,8]
[360004138,1746475846005,-587.43,0.00032876,8]
[360004139,1746475846015,-151.0,0.00032876,7]
[360004140,1746475846025,-151.0,0.00032876,7]
[360004141,1746475846034,-400.0,0.00032876,8]
[360004142,1746475846044,-400.0,0.00032876,8]
[360004143,1746475846054,-400.0,0.00032876,8]
[360004144,1746475846063,-400.0,0.00032876,8]
[360004145,1746475846073,-151.0,0.00032876,7]
[360004146,1746475846082,-255.670938,0.00032876,7]
[360004147,1746475846091,-400.0,0.00032876,8]
[360004148,1746475846101,-400.0,0.00032876,8]
[360004149,1746475846110,-588.06,0.00032876,8]
[360004150,1746475846120,-400.0,0.00032876,8]
[360004151,1746475846130,-400.0,0.00032876,8]
[360004152,1746475846139,-400.0,0.00032876,8]
[360004153,1746475846148,-151.0,0.00032876,7]
[360004155,1746475846158,-151.0,0.00032876,7]
[360004156,1746475846167,-400.0,0.00032876,8]
[360004157,1746475846177,-400.0,0.00032876,8]
[360004158,1746475846187,-2693.57,0.00032876,8]
[360004159,1746475846197,-400.0,0.00032876,8]
[360004160,1746475846207,-400.0,0.00032876,8]
[360004161,1746475846216,-151.0,0.00032876,7]
[360004162,1746475846228,-430.57,0.00032876,8]
[360004163,1746475846239,-1879.75,0.00032876,8]
[360004164,1746475846249,-467.76724636,0.00032876,8]
[360004165,1746475846258,-1523.62833435,0.00032876,8]
[360004170,1746475846743,-318.93166565,0.00032876,8]
[360004171,1746475846753,-400.0,0.00032876,8]
[360004172,1746475846763,-400.0,0.00032876,8]
[360004173,1746475846777,-306.93288657,0.00032876,8]
[360004174,1746475846788,-2005.02,0.00032876,8]
[360004175,1746475846798,-400.0,0.00032876,8]
[360004176,1746475846808,-400.0,0.00032876,8]
[360004177,1746475846818,-400.0,0.00032876,8]
[360004178,1746475846827,-2595.70951164,0.00032876,8]
[360004179,1746475927261,-1000.0,0.00022526,2]
[360004180,1746475927282,-200.13432905,0.00022526,2]
[360004181,1746475927305,-250.0,0.00022624,2]
[360004182,1746475927326,-500.0,0.000228,2]
[360004183,1746475927347,-800.0,0.00024615,2]
[360004184,1746475927368,-800.0,0.00024625,2]
[360004185,1746475927390,-680.86567095,0.00024753,2]
[360004187,1746475995975,-250.0,0.00022624,2]
[360004188,1746475995995,-509.62149181,0.000228,2]
[360004189,1746475996017,-500.0,0.000228,2]
[360004190,1746475996037,-500.0,0.000228,2]
[360004191,1746475996057,-500.0,0.000228,2]
[360004192,1746475996078,-373.54494075,0.000228,2]
[360004193,1746475996099,-119.13432905,0.00024753,2]
[360004194,1746475996120,-243.69923839,0.00024753,2]
[360004199,1746476127672,-51622.0,0.00022,2]
[360004200,1746476188048,-161.0,0.000219,2]
[360004201,1746476192928,-20.36687426,0.000219,2]
[360004202,1746476238727,-302.48068911,0.00021111,2]
[360004203,1746476248071,-607.89345356,0.00021111,2]
[360004204,1746476256134,-175.69,0.00021101,3]
[360004205,1746476256157,-124.31,0.00021111,2]
[360004206,1746476260857,-24907.0,0.00021111,2]
[360004207,1746476263864,-375.4018638,0.00021101,3]
[360004208,1746476278498,-151.6981362,0.00021101,3]
[360004209,1746476278521,-13.21914501,0.00021111,2]
[360004210,1746476288925,-182.1060237,0.0002111,2]
[360004211,1746476294337,-117.8939763,0.0002111,2]
[360004212,1746476294359,-92.38414061,0.00021111,2]
[360004213,1746476304059,-336.19102245,0.00021111,2]
[360004216,1746476309691,-207.08093353,0.00021111,2]
[360004217,1746476312860,-175.84833866,0.0002111,2]
[360004218,1746476312889,-31.23259487,0.0002111,2]
[360004220,1746476324517,207.08093353,0.00021,10]
[360004221,1746476369847,56686.574758,0.00021,30]
[360004222,1746476459040,-755.78378737,0.0002,2]
[360004223,1746476471811,-233.44942206,0.0002,2]
[360004224,1746476474968,-151.0,0.0002,2]
[360004225,1746476478735,-153.56052766,0.0002,2]
[360004226,1746476492687,-201.01492869,0.0002,2]
[360004227,1746476498753,-327.70417143,0.0002,2]
[360004228,1746476501823,-177.48716279,0.0002,2]
[360004229,1746476513210,-306.47082404,0.0002011,2]
[360004230,1746476518249,-233.3027997,0.0002011,2]
[360004231,1746476522689,-300.0,0.00020109,2]
[360004232,1746476522719,-200.0,0.0002011,2]
[360004233,1746476533469,-266.6972003,0.0002011,2]
[360004234,1746476536683,-233.3027997,0.0002011,2]
[360004235,1746476543188,-500.0,0.0002011,2]
[360004236,1746476547737,-266.6972003,0.0002011,2]
[360004237,1746476551541,-175.65371778,0.0002011,2]
[360004238,1746476554809,-500.0,0.0002011,2]
[360004239,1746476560995,-324.34628222,0.0002011,2]
[360004240,1746476564658,-153.18469829,0.0002011,2]
[360004241,1746476567918,-300.0,0.0002011,2]
[360004242,1746476577928,-155.0,0.0002011,2]
[360004243,1746476581033,-268.0,0.0002011,2]
[360004244,1746476586834,-300.0,0.00020109,2]
[360004245,1746476591640,-203.39226991,0.0002011,2]
[360004246,1746476599815,-179.0,0.0002011,2]
[360004247,1746476607707,-242.0261084,0.00020109,2]
[360004248,1746476614351,-257.9738916,0.00020109,2]
[360004249,1746476614385,-219.48389459,0.00020109,2]
[360004250,1746476624674,-280.51610541,0.00020109,2]
[360004251,1746476624703,-257.21772971,0.00020109,2]
[360004252,1746476628404,-292.43767051,0.00020009,2]
[360004253,1746476633162,-35.71090129,0.00020009,2]
[360004254,1746476633195,-124.72140456,0.00020109,2]
[360004255,1746476633220,-5.84298754,0.00020109,2]
[360004256,1746476639205,-180.52612848,0.00020109,2]
[360004257,1746476644750,-158.88601231,0.00020109,2]
[360004258,1746476648657,-141.11398769,0.00020109,2]
[360004259,1746476648681,-24.45588851,0.00020109,2]
[360004260,1746476648707,-5.51308486,0.00020109,2]
[360004262,1746476655410,-170.14063292,0.00020109,2]
[360004263,1746476655442,-153.18469829,0.00020109,2]
[360004264,1746476655463,-54.19040001,0.00020109,2]
[360004265,1746476659516,-105.80959999,0.00020109,2]
[360004266,1746476659539,-349.70662041,0.0002011,2]
[360004267,1746476662550,-265.00542295,0.0002011,2]
[360004270,1746476672583,-200.0,0.0002011,2]
[360004271,1746476676590,-267.43707725,0.0002011,2]
[360004272,1746476680373,-216.01936581,0.0002011,2]
[360004273,1746476685182,-168.91208258,0.0002011,2]
[360004274,1746476689784,-301.45569011,0.0002011,2]
[360004275,1746476695030,-225.51573122,0.0002011,2]
[360004276,1746476703768,-300.0,0.00020109,2]
[360004277,1746476703797,-553.178349,0.0002011,2]
[360004278,1746476709788,-1000.0,0.0002011,2]
[360004303,1746476717170,-578.81530171,0.00020109,2]
[360004304,1746476719882,-621.18469829,0.00020109,2]
[360004305,1746476719907,-300.0,0.00020109,2]
[360004306,1746476719931,-1013.57539191,0.0002011,2]
[360004307,1746476726245,-166.0,0.0002011,2]
[360004309,1746476732047,-166.0,0.0002011,2]
[360004310,1746476735269,-241.29692028,0.0002011,2]
[360004311,1746476741163,-211.04107581,0.0002011,2]
[360004312,1746476743430,-152.0,0.0002011,2]
[360004313,1746476746739,-159.55783364,0.0002011,2]
[360004314,1746476752288,-159.21582044,0.0002011,2]
[360004315,1746476756417,-254.77831283,0.0002011,2]
[360004316,1746476759847,-404.75941428,0.0002011,2]
[360004322,1746476805152,-350.40463699,0.0002011,2]
[360004323,1746476831131,-300.0,0.00020109,2]
[360004324,1746476831153,-1422.07258196,0.0002011,2]
[360004325,1746476843079,-1094.98517879,0.0002011,2]
[360004327,1746476871269,250.0,0.00018,2]
[360004328,1746476875323,1549.40432037,0.00016,2]
[360004331,1746476922291,844.140147,0.0002,120]
[360004332,1746476923869,2311.24646394,0.00015,2]
[360004335,1746476948135,-300.0,0.00019706,2]
[360004336,1746476948155,-300.0,0.00019999,2]
[360004337,1746476948176,-11022.57587669,0.0002,2]
[360004338,1746476948199,-11292.0347015,0.0002011,2]
[360004339,1746476948221,-2641.4377484,0.0002011,2]
[360004340,1746476948242,-1101.8761645,0.0002061,2]
[360004341,1746476948263,-821.67427158,0.00020898,2]
[360004342,1746476948285,-500.0,0.00020998,2]
[360004343,1746476948318,-500.0,0.00020998,2]
[360004344,1746476948340,-500.0,0.00020998,2]
[360004345,1746476948370,-500.0,0.00020998,2]
[360004346,1746476948390,-500.0,0.00020998,2]
[360004347,1746476948412,-500.0,0.00020998,2]
[360004348,1746476948436,-399.95157375,0.00020998,2]
[360004349,1746476948466,-500.0,0.00020998,2]
[360004350,1746476948488,-500.0,0.00020998,2]
[360004351,1746476948508,-500.0,0.00020998,2]
[360004352,1746476948536,-500.0,0.00020998,2]
[360004353,1746476948565,-500.0,0.00020998,2]
[360004354,1746476948586,-252.40421631,0.00020998,2]
[360004355,1746476948606,-587.50032168,0.00020998,2]
[360004356,1746476948635,-500.0,0.00020998,2]
[360004357,1746476948662,-500.0,0.00020998,2]
[360004358,1746476948690,-500.0,0.00020998,2]
[360004359,1746476948717,-500.0,0.00020998,2]
[360004360,1746476948744,-500.0,0.00020998,2]
[360004361,1746476948771,-500.0,0.00020998,2]
[360004362,1746476948797,-500.0,0.00020998,2]
[360004363,1746476948824,-500.0,0.00020998,2]
[360004364,1746476948852,-500.0,0.00020998,2]
[360004365,1746476948879,-500.0,0.00020998,2]
[360004366,1746476948906,-500.0,0.00020998,2]
[360004367,1746476948934,-500.0,0.00020998,2]
[360004368,1746476948961,-178.50422956,0.00020998,2]
[360004369,1746476948988,-500.0,0.00020998,2]
[360004370,1746476949015,-500.0,0.00020998,2]
[360004371,1746476949047,-500.0,0.00020998,2]
[360004372,1746476949079,-500.0,0.00020998,2]
[360004373,1746476949106,-500.0,0.00020998,2]
[360004374,1746476949136,-500.0,0.00020998,2]
[360004375,1746476949165,-500.0,0.00020998,2]
[360004376,1746476949194,-500.0,0.00020998,2]
[360004377,1746476949223,-500.0,0.00020998,2]
[360004378,1746476949250,-500.0,0.00020998,2]
[360004379,1746476949278,-500.0,0.00020998,2]
[360004380,1746476949305,-500.0,0.00020998,2]
[360004381,1746476949332,-500.0,0.00020998,2]
[360004382,1746476949359,-500.0,0.00020998,2]
[360004383,1746476949388,-500.0,0.00020998,2]
[360004384,1746476949416,-500.0,0.00020998,2]
[360004385,1746476949443,-500.0,0.00020998,2]
[360004386,1746476949470,-500.0,0.00020998,2]
[360004387,1746476949498,-500.0,0.00020998,2]
[360004388,1746476949529,-500.0,0.00020998,2]
[360004389,1746476949558,-500.0,0.00020998,2]
[360004390,1746476949586,-500.0,0.00020998,2]
[360004391,1746476949614,-500.0,0.00020998,2]
[360004392,1746476949642,-500.0,0.00020998,2]
[360004393,1746476949670,-500.0,0.00020998,2]
[360004394,1746476949698,-500.0,0.00020998,2]
[360004395,1746476949726,-500.0,0.00020998,2]
[360004396,1746476949753,-500.0,0.00020998,2]
[360004397,1746476949781,-500.0,0.00020998,2]
[360004398,1746476949808,-500.0,0.00020998,2]
[360004399,1746476949838,-500.0,0.00020998,2]
[360004400,1746476949866,-417.85042296,0.00020998,2]
[360004401,1746476949894,-500.0,0.00020998,2]
[360004402,1746476949923,-500.0,0.00020998,2]
[360004403,1746476949952,-500.0,0.00020998,2]
[360004404,1746476949983,-500.0,0.00020998,2]
[360004405,1746476950178,-500.0,0.00020998,2]
[360004406,1746476950211,-500.0,0.00020998,2]
[360004407,1746476950232,-17039.04904646,0.00020999,2]
[360004408,1746476950254,-320.0,0.00020999,2]
[360004409,1746476950275,-3813.0,0.00021,2]
[360004410,1746476950300,-8683.07296332,0.00021,7]
[360004411,1746476950322,-500.0,0.00021016,2]
[360004412,1746476950344,-557.47255814,0.00021016,2]
[360004413,1746476950367,-3582.76992202,0.00021017,2]
[360004414,1746476950387,-562.41,0.00021101,3]
[360004415,1746476950407,-134575.08580311,0.00021111,2]
[360004416,1746476950428,-713.811728,0.00021117,2]
[360004417,1746476950451,-420.0,0.00021777,2]
[360004418,1746476950471,-21119.90998991,0.0002189,2]
[360004419,1746476951078,-27514.09001009,0.0002189,2]
[360004420,1746476951100,-420.0,0.00021894,2]
[360004421,1746476951124,-416.80535663,0.00021918,2]
[360004422,1746476951144,-500.0,0.00021933,2]
[360004423,1746476951167,-500.0,0.00021933,2]
[360004424,1746476951189,-500.0,0.00021933,2]
[360004425,1746476951210,-500.0,0.00021933,2]
[360004426,1746476951231,-1200.0,0.00021999,2]
[360004427,1746476951251,-8166.11683753,0.00022,2]
[360004428,1746476951270,-5475.9752416,0.00022,7]
[360004429,1746476951290,-500.0,0.00022286,2]
[360004430,1746476951310,-500.0,0.00022286,2]
[360004431,1746476951330,-500.0,0.00022286,2]
[360004432,1746476951350,-500.0,0.00022286,2]
[360004433,1746476951369,-500.0,0.00022286,2]
[360004434,1746476951390,-386.55270646,0.00022286,2]
[360004438,1746476994991,-303.70227892,0.000199,2]
[360004439,1746477006138,-150.53815928,0.000199,2]
[360004440,1746477009984,-300.0,0.000199,2]
[360004441,1746477012857,-150.0,0.000199,2]
[360004442,1746477016371,-250.0,0.000199,2]
[360004444,1746477020150,-160.0,0.000199,2]
[360004445,1746477025909,-309.48977497,0.000199,2]
[360004446,1746477030173,-154.03448493,0.000199,2]
[360004472,1746477031799,-500.0,0.00020998,2]
[360004473,1746477031809,-1200.0,0.00022285,2]
[360004475,1746477031818,-300.0,0.00022285,2]
[360004477,1746477031828,-119.34489589,0.00022286,2]
[360004479,1746477031837,-590.9529795,0.00022286,2]
[360004481,1746477031847,-483.54117864,0.00022286,2]
[360004482,1746477031856,-500.0,0.00022286,2]
[360004484,1746477031866,-500.0,0.00022286,2]
[360004486,1746477031875,-488.37197128,0.00022343,2]
[360004488,1746477031885,-500.0,0.00022343,2]
[360004489,1746477031894,-500.0,0.00022343,2]
[360004491,1746477031904,-1000.0,0.000227,2]
[360004493,1746477031913,-520.26097024,0.00023177,2]
[360004494,1746477031923,-821.67427157,0.00023398,2]
[360004496,1746477031932,-2000.0,0.000234,2]
[360004498,1746477031942,-151.0,0.000234,6]
[360004499,1746477031951,-500.0,0.0002375,2]
[360004500,1746477031961,-500.0,0.0002375,2]